fUST/lending_fUST_20250209
["ID","MTS","AMOUNT","RATE_DAILY","PERIOD"]
[352338009,1739046632636,-500.0,0.00010958,2]
[352338011,1739046632646,-500.0,0.00010958,2]
[352338013,1739046632656,-500.0,0.00010958,2]
[352338015,1739046632665,-500.0,0.00010958,2]
[352338018,1739046632675,-500.0,0.00010958,2]
[352338020,1739046632685,-500.0,0.00010958,2]
[352338022,1739046632695,-391.51408973,0.00010958,2]
[352338311,1739046638100,-108.48591027,0.00010958,2]
[352338313,1739046638114,-500.0,0.00010958,2]
[352338315,1739046638124,-31.79461723,0.00010958,2]
[352338317,1739046638136,-468.20538277,0.00010958,2]
[352338319,1739046638147,-500.0,0.00010958,2]
[352338321,1739046638157,-271.07512359,0.00010958,2]
[352338323,1739046638170,-228.92487641,0.00010958,2]
[352338324,1739046638180,-500.0,0.00010958,2]
[352338326,1739046638191,-260.22843773,0.00010958,2]
[352338328,1739046638202,-500.0,0.00010958,2]
[352338330,1739046638212,-500.0,0.00010958,2]
[352338332,1739046638223,-500.0,0.00010958,2]
[352338334,1739046638234,-500.0,0.00010958,2]
[352338336,1739046638244,-513.93161765,0.00010958,2]
[352338338,1739046638254,-500.0,0.00010958,2]
[352338340,1739046638264,-500.0,0.00010958,2]
[352338342,1739046638273,-500.0,0.00010958,2]
[352338344,1739046638283,-500.0,0.00010958,2]
[352338346,1739046638292,-500.0,0.00010958,2]
[352338348,1739046638302,-681.35,0.00010958,2]
[352338350,1739046638312,-500.0,0.00010958,2]
[352338352,1739046638322,-500.0,0.00010958,2]
[352338354,1739046638331,-500.0,0.00010958,2]
[352338356,1739046638341,-500.0,0.00010958,2]
[352338358,1739046638350,-500.0,0.00010958,2]
[352338360,1739046638363,-500.0,0.00010958,2]
[352338362,1739046638373,-500.0,0.00010958,2]
[352338364,1739046638383,-500.0,0.00010958,2]
[352338366,1739046638392,-505.96697996,0.00010958,2]
[352338368,1739046638402,-500.0,0.00010958,2]
[352338370,1739046638412,-500.0,0.00010958,2]
[352338372,1739046638422,-500.0,0.00010958,2]
[352338374,1739046638432,-500.0,0.00010958,2]
[352338376,1739046638442,-500.0,0.00010958,2]
[352338378,1739046638452,-500.0,0.00010958,2]
[352338380,1739046638462,-500.0,0.00010958,2]
[352338382,1739046638472,-500.0,0.00010958,2]
[352338384,1739046638481,-500.0,0.00010958,2]
[352338386,1739046638491,-500.0,0.00010958,2]
[352338388,1739046638501,-500.0,0.00010958,2]
[352338390,1739046638511,-500.0,0.00010958,2]
[352338392,1739046638520,-729.49,0.00010958,2]
[352338394,1739046638529,-500.0,0.00010958,2]
[352338396,1739046638540,-500.0,0.00010958,2]
[352338398,1739046638553,-500.0,0.00010958,2]
[352338400,1739046638563,-500.0,0.00010958,2]
[352338402,1739046638572,-506.40219388,0.00010958,2]
[352338404,1739046638583,-500.0,0.00010958,2]
[352338406,1739046638593,-519.77,0.00010958,2]
[352338408,1739046638602,-500.0,0.00010958,2]
[352338410,1739046638614,-500.0,0.00010958,2]
[352338412,1739046638625,-500.0,0.00010958,2]
[352338414,1739046638635,-500.0,0.00010958,2]
[352338416,1739046638644,-1310.85,0.00010958,2]
[352338418,1739046638654,-500.0,0.00010958,2]
[352338420,1739046638663,-500.0,0.00010958,2]
[352338422,1739046638672,-781.33,0.00010958,2]
[352338424,1739046638682,-500.0,0.00010958,2]
[352338426,1739046638692,-1005.48,0.00010958,2]
[352338428,1739046638701,-826.6,0.00010958,2]
[352338430,1739046638710,-500.0,0.00010958,2]
[352338433,1739046638720,-2336.07,0.00010958,2]
[352338435,1739046638731,-500.0,0.00010958,2]
[352338437,1739046638740,-500.0,0.00010958,2]
[352338439,1739046638750,-548.96,0.00010958,2]
[352338441,1739046638759,-500.0,0.00010958,2]
[352338443,1739046638769,-500.0,0.00010958,2]
[352338445,1739046638778,-1012.29,0.00010958,2]
[352338447,1739046638787,-500.0,0.00010958,2]
[352338449,1739046638797,-500.0,0.00010958,2]
[352338451,1739046638807,-9403.59,0.00010958,2]
[352338453,1739046638816,-500.0,0.00010958,2]
[352338455,1739046638825,-500.0,0.00010958,2]
[352338457,1739046638835,-500.0,0.00010958,2]
[352338459,1739046638844,-909.51,0.00010958,2]
[352338460,1739046638854,-500.0,0.00010958,2]
[352338462,1739046638865,-500.0,0.00010958,2]
[352338464,1739046638875,-500.0,0.00010958,2]
[352338466,1739046638883,-2851.67,0.00010958,2]
[352338468,1739046638893,-474.54710753,0.00010958,2]
[352338470,1739046638903,-500.0,0.00010958,2]
[352338472,1739046638912,-500.0,0.00010958,2]
[352338474,1739046638921,-500.0,0.00010958,2]
[352338476,1739046638931,-632.02,0.00010958,2]
[352338478,1739046638940,-991.24,0.00010958,2]
[352338480,1739046638949,-833.82,0.00010958,2]
[352338482,1739046638959,-500.0,0.00010958,2]
[352338484,1739046638968,-500.0,0.00010958,2]
[352338485,1739046638977,-500.0,0.00010958,2]
[352338488,1739046638987,-500.0,0.00010958,2]
[352338490,1739046638997,-500.0,0.00010958,2]
[352338492,1739046639006,-500.0,0.00010958,2]
[352338494,1739046639015,-500.0,0.00010958,2]
[352338496,1739046639025,-500.0,0.00010958,2]
[352338498,1739046639035,-500.0,0.00010958,2]
[352338500,1739046639044,-500.0,0.00010958,2]
[352338501,1739046639053,-1091.23,0.00010958,2]
[352338503,1739046639062,-500.0,0.00010958,2]
[352338506,1739046639072,-500.0,0.00010958,2]
[352338508,1739046639082,-500.0,0.00010958,2]
[352338510,1739046639092,-500.0,0.00010958,2]
[352338511,1739046639102,-500.0,0.00010958,2]
[352338514,1739046639114,-500.0,0.00010958,2]
[352338516,1739046639124,-218.19398366,0.00010958,2]
[352338517,1739046639134,-500.0,0.00010958,2]
[352338538,1739046639332,-500.0,0.00010958,2]
[352338540,1739046639342,-500.0,0.00010958,2]
[352338542,1739046639352,-500.0,0.00010958,2]
[352338544,1739046639365,-401.88639281,0.00010958,2]
[352338546,1739046639374,-500.0,0.00010958,2]
[352338549,1739046639384,-500.0,0.00010958,2]
[352338551,1739046639394,-500.0,0.00010958,2]
[352338553,1739046639404,-500.0,0.00010958,2]
[352338555,1739046639416,-500.0,0.00010958,2]
[352338557,1739046639427,-2130.48,0.00010958,2]
[352338559,1739046639438,-500.0,0.00010958,2]
[352338561,1739046639447,-500.0,0.00010958,2]
[352338563,1739046639458,-591.08176997,0.00010958,2]
[352338565,1739046639468,-500.0,0.00010958,2]
[352338567,1739046639478,-500.0,0.00010958,2]
[352338569,1739046639489,-500.0,0.00010958,2]
[352338571,1739046639502,-500.0,0.00010958,2]
[352338573,1739046639511,-500.0,0.00010958,2]
[352338575,1739046639521,-190.74,0.00010958,2]
[352338577,1739046639530,-982.5,0.00010958,2]
[352338579,1739046639544,-641.66,0.00010958,2]
[352338581,1739046639554,-500.0,0.00010958,2]
[352338583,1739046639564,-500.0,0.00010958,2]
[352338585,1739046639573,-1943.58,0.00010958,2]
[352338588,1739046639584,-500.0,0.00010958,2]
[352338590,1739046639593,-500.0,0.00010958,2]
[352338592,1739046639602,-500.0,0.00010958,2]
[352338594,1739046639614,-4950.39,0.00010958,2]
[352338596,1739046639624,-1789.83,0.00010958,2]
[352338598,1739046639636,-933.44,0.00010958,2]
[352338601,1739046639646,-500.0,0.00010958,2]
[352338604,1739046639656,-500.0,0.00010958,2]
[352338606,1739046639666,-9126.83,0.00010958,2]
[352338608,1739046639676,-500.0,0.00010958,2]
[352338610,1739046639686,-500.0,0.00010958,2]
[352338612,1739046639695,-1963.88,0.00010958,2]
[352338614,1739046639704,-500.0,0.00010958,2]
[352338616,1739046639715,-913.17,0.00010958,2]
[352338618,1739046639724,-500.0,0.00010958,2]
[352338620,1739046639733,-500.0,0.00010958,2]
[352338622,1739046639743,-2042.98,0.00010958,2]
[352338624,1739046639752,-617.84,0.00010958,2]
[352338626,1739046639762,-500.0,0.00010958,2]
[352338628,1739046639771,-660.31,0.00010958,2]
[352338630,1739046639781,-500.0,0.00010958,2]
[352338632,1739046639791,-500.0,0.00010958,2]
[352338634,1739046639801,-500.0,0.00010958,2]
[352338636,1739046639810,-1725.21,0.00010958,2]
[352338637,1739046639819,-500.0,0.00010958,2]
[352338638,1739046639828,-500.0,0.00010958,2]
[352338639,1739046639838,-500.0,0.00010958,2]
[352338640,1739046639848,-500.0,0.00010958,2]
[352338641,1739046639858,-500.0,0.00010958,2]
[352338642,1739046639871,-3428.86,0.00010958,2]
[352338643,1739046639881,-344.92397539,0.00010958,2]
[352338644,1739046639891,-500.0,0.00010958,2]
[352338645,1739046639901,-500.0,0.00010958,2]
[352338646,1739046639912,-500.0,0.00010958,2]
[352338647,1739046639921,-608.88,0.00010958,2]
[352338648,1739046639932,-500.0,0.00010958,2]
[352338649,1739046639943,-500.0,0.00010958,2]
[352338650,1739046639954,-532.84,0.00010958,2]
[352338651,1739046639964,-500.0,0.00010958,2]
[352338652,1739046639974,-500.0,0.00010958,2]
[352338653,1739046639984,-500.0,0.00010958,2]
[352338654,1739046639993,-500.0,0.00010958,2]
[352338655,1739046640005,-611.5,0.00010958,2]
[352338656,1739046640023,-261.26856444,0.00010973,2]
[352338657,1739046640033,-500.0,0.00010973,2]
[352338658,1739046640043,-151.64112493,0.00010973,2]
[352338660,1739046640053,-500.0,0.00010999,2]
[352338662,1739046640062,-500.0,0.00010999,2]
[352338663,1739046640072,-500.0,0.00010999,2]
[352338665,1739046640082,-500.0,0.00010999,2]
[352338667,1739046640092,-500.0,0.00010999,2]
[352338669,1739046640102,-500.0,0.00010999,2]
[352338671,1739046640114,-41200.79380112,0.00011,2]
[352338673,1739046640130,-64738.76542841,0.00011,2]
[352338675,1739046640141,-107000.69602515,0.00011,2]
[352338677,1739046640151,-500.0,0.00011094,2]
[352338679,1739046640161,-500.0,0.00011094,2]
[352338681,1739046640171,-500.0,0.00011094,2]
[352338683,1739046640181,-500.0,0.00011094,2]
[352338685,1739046640191,-500.0,0.00011094,2]
[352338687,1739046640201,-500.0,0.00011094,2]
[352338689,1739046640212,-500.0,0.00011095,2]
[352338692,1739046640222,-500.0,0.00011095,2]
[352338693,1739046640232,-500.0,0.00011095,2]
[352338696,1739046640243,-391.88252646,0.00011095,2]
[352338697,1739046640253,-892.92,0.00011095,2]
[352338699,1739046640263,-500.0,0.00011095,2]
[352338701,1739046640272,-500.0,0.00011095,2]
[352338704,1739046640282,-904.88,0.00011095,2]
[352338706,1739046640292,-500.0,0.00011095,2]
[352338708,1739046640302,-500.0,0.00011095,2]
[352338710,1739046640312,-500.0,0.00011095,2]
[352338712,1739046640321,-500.0,0.00011095,2]
[352338714,1739046640331,-500.0,0.00011095,2]
[352338716,1739046640341,-500.0,0.00011095,2]
[352338718,1739046640351,-594.56,0.00011095,2]
[352338720,1739046640363,-819.57,0.00011095,2]
[352338722,1739046640372,-500.0,0.00011095,2]
[352338724,1739046640383,-500.0,0.00011095,2]
[352338726,1739046640393,-631.51408497,0.00011095,2]
[352338728,1739046640402,-500.0,0.00011095,2]
[352338730,1739046640411,-500.0,0.00011095,2]
[352338732,1739046640421,-500.0,0.00011095,2]
[352338734,1739046640430,-693.57,0.00011095,2]
[352338736,1739046640440,-500.0,0.00011095,2]
[352338738,1739046640451,-500.0,0.00011095,2]
[352338739,1739046640461,-500.0,0.00011095,2]
[352338741,1739046640471,-500.0,0.00011095,2]
[352338743,1739046640480,-500.0,0.00011095,2]
[352338745,1739046640490,-500.0,0.00011095,2]
[352338747,1739046640500,-500.0,0.00011095,2]
[352338749,1739046640509,-500.0,0.00011095,2]
[352338751,1739046640519,-500.0,0.00011095,2]
[352338753,1739046640528,-500.0,0.00011095,2]
[352338755,1739046640538,-500.0,0.00011095,2]
[352338756,1739046640551,-500.0,0.00011095,2]
[352338758,1739046640561,-681.35,0.00011095,2]
[352338760,1739046640571,-500.0,0.00011095,2]
[352338762,1739046640580,-500.0,0.00011095,2]
[352338764,1739046640591,-500.0,0.00011095,2]
[352338766,1739046640600,-500.0,0.00011095,2]
[352338768,1739046640611,-500.0,0.00011095,2]
[352338770,1739046640622,-500.0,0.00011095,2]
[352338772,1739046640631,-500.0,0.00011095,2]
[352338774,1739046640641,-500.0,0.00011095,2]
[352338776,1739046640650,-190.76350899,0.00011095,2]
[352338778,1739046640659,-500.0,0.00011095,2]
[352338780,1739046640669,-500.0,0.00011095,2]
[352338782,1739046640678,-500.0,0.00011095,2]
[352338784,1739046640688,-500.0,0.00011095,2]
[352338786,1739046640698,-213.62252062,0.00011095,2]
[352338788,1739046640708,-500.0,0.00011095,2]
[352338790,1739046640719,-500.0,0.00011095,2]
[352338792,1739046640728,-729.49,0.00011095,2]
[352338794,1739046640737,-500.0,0.00011095,2]
[352338796,1739046640746,-500.0,0.00011095,2]
[352338798,1739046640756,-500.0,0.00011095,2]
[352338800,1739046640765,-500.0,0.00011095,2]
[352338802,1739046640775,-519.77,0.00011095,2]
[352338804,1739046640784,-500.0,0.00011095,2]
[352338806,1739046640793,-500.0,0.00011095,2]
[352338808,1739046640802,-1310.85,0.00011095,2]
[352338810,1739046640812,-500.0,0.00011095,2]
[352338812,1739046640821,-500.0,0.00011095,2]
[352338814,1739046640830,-781.33,0.00011095,2]
[352338816,1739046640839,-500.0,0.00011095,2]
[352338818,1739046640849,-1005.48,0.00011095,2]
[352338820,1739046640859,-826.6,0.00011095,2]
[352338822,1739046640869,-429.87078119,0.00011095,2]
[352338824,1739046640879,-2336.07,0.00011095,2]
[352338826,1739046640888,-500.0,0.00011095,2]
[352338828,1739046640898,-500.0,0.00011095,2]
[352338830,1739046640908,-548.96,0.00011095,2]
[352338832,1739046640918,-500.0,0.00011095,2]
[352338834,1739046640928,-500.0,0.00011095,2]
[352338836,1739046640937,-1012.29,0.00011095,2]
[352338838,1739046640947,-500.0,0.00011095,2]
[352338840,1739046640957,-500.0,0.00011095,2]
[352338841,1739046640967,-9403.59,0.00011095,2]
[352338842,1739046640976,-500.0,0.00011095,2]
[352338843,1739046640985,-500.0,0.00011095,2]
[352338844,1739046640995,-500.0,0.00011095,2]
[352338845,1739046641005,-909.51,0.00011095,2]
[352338846,1739046641015,-500.0,0.00011095,2]
[352338847,1739046641024,-500.0,0.00011095,2]
[352338848,1739046641034,-2851.67,0.00011095,2]
[352338849,1739046641044,-500.0,0.00011095,2]
[352338850,1739046641053,-500.0,0.00011095,2]
[352338851,1739046641063,-632.02,0.00011095,2]
[352338852,1739046641072,-991.24,0.00011095,2]
[352338853,1739046641082,-833.82,0.00011095,2]
[352338854,1739046641091,-500.0,0.00011095,2]
[352338855,1739046641101,-500.0,0.00011095,2]
[352338856,1739046641112,-500.0,0.00011095,2]
[352338857,1739046641122,-1091.23,0.00011095,2]
[352338858,1739046641131,-500.0,0.00011095,2]
[352338859,1739046641140,-500.0,0.00011095,2]
[352338860,1739046641151,-500.0,0.00011095,2]
[352338861,1739046641162,-500.0,0.00011095,2]
[352338862,1739046641172,-500.0,0.00011095,2]
[352338863,1739046641182,-500.0,0.00011095,2]
[352338864,1739046641192,-500.0,0.00011095,2]
[352338865,1739046641203,-500.0,0.00011095,2]
[352338866,1739046641212,-500.0,0.00011095,2]
[352338867,1739046641223,-188.83,0.00011095,2]
[352338868,1739046641238,-2130.48,0.00011095,2]
[352338869,1739046641250,-500.0,0.00011095,2]
[352338870,1739046641259,-500.0,0.00011095,2]
[352338871,1739046641269,-500.0,0.00011095,2]
[352338872,1739046641279,-500.0,0.00011095,2]
[352338873,1739046641289,-250.27580523,0.00011095,2]
[352338874,1739046641299,-500.0,0.00011095,2]
[352338875,1739046641308,-982.5,0.00011095,2]
[352338876,1739046641318,-641.66,0.00011095,2]
[352338877,1739046641328,-500.0,0.00011095,2]
[352338878,1739046641338,-500.0,0.00011095,2]
[352338879,1739046641348,-1943.58,0.00011095,2]
[352338880,1739046641357,-500.0,0.00011095,2]
[352338881,1739046641368,-500.0,0.00011095,2]
[352338882,1739046641378,-500.0,0.00011095,2]
[352338883,1739046641388,-4950.39,0.00011095,2]
[352338884,1739046641398,-1789.83,0.00011095,2]
[352338885,1739046641407,-933.44,0.00011095,2]
[352338886,1739046641417,-500.0,0.00011095,2]
[352338887,1739046641427,-500.0,0.00011095,2]
[352338888,1739046641436,-9126.83,0.00011095,2]
[352338889,1739046641447,-500.0,0.00011095,2]
[352338890,1739046641456,-500.0,0.00011095,2]
[352338891,1739046641466,-1963.88,0.00011095,2]
[352338892,1739046641475,-500.0,0.00011095,2]
[352338893,1739046641485,-913.17,0.00011095,2]
[352338894,1739046641494,-500.0,0.00011095,2]
[352338895,1739046641504,-500.0,0.00011095,2]
[352338896,1739046641513,-2042.98,0.00011095,2]
[352338897,1739046641523,-617.84,0.00011095,2]
[352338898,1739046641533,-500.0,0.00011095,2]
[352338899,1739046641543,-660.31,0.00011095,2]
[352338900,1739046641555,-500.0,0.00011095,2]
[352338901,1739046641566,-500.0,0.00011095,2]
[352338902,1739046641576,-462.27252829,0.00011095,2]
[352338903,1739046641587,-1725.21,0.00011095,2]
[352338904,1739046641596,-500.0,0.00011095,2]
[352338905,1739046641605,-500.0,0.00011095,2]
[352338906,1739046641615,-500.0,0.00011095,2]
[352338907,1739046641627,-500.0,0.00011095,2]
[352338908,1739046641637,-3428.86,0.00011095,2]
[352338909,1739046641647,-500.0,0.00011095,2]
[352338910,1739046641656,-500.0,0.00011095,2]
[352338911,1739046641666,-608.88,0.00011095,2]
[352338912,1739046641676,-500.0,0.00011095,2]
[352338913,1739046641685,-532.84,0.00011095,2]
[352338914,1739046641695,-500.0,0.00011095,2]
[352338915,1739046641705,-362.76141906,0.00011095,2]
[352338916,1739046641715,-500.0,0.00011231,2]
[352338917,1739046641732,-500.0,0.00011231,2]
[352338918,1739046641742,-500.0,0.00011231,2]
[352338919,1739046641751,-420.46591863,0.00011231,2]
[352338920,1739046641761,-500.0,0.00011232,2]
[352338921,1739046641771,-892.92,0.00011232,2]
[352338922,1739046641781,-500.0,0.00011232,2]
[352338923,1739046641790,-904.88,0.00011232,2]
[352338924,1739046641800,-500.0,0.00011232,2]
[352338925,1739046641810,-500.0,0.00011232,2]
[352338926,1739046641819,-500.0,0.00011232,2]
[352338927,1739046641829,-594.56,0.00011232,2]
[352338928,1739046641839,-819.57,0.00011232,2]
[352338929,1739046641848,-500.0,0.00011232,2]
[352338930,1739046641861,-637.33,0.00011232,2]
[352338931,1739046641871,-500.0,0.00011232,2]
[352338932,1739046641880,-500.0,0.00011232,2]
[352338933,1739046641893,-500.0,0.00011232,2]
[352338934,1739046641903,-693.57,0.00011232,2]
[352338935,1739046641912,-500.0,0.00011232,2]
[352338936,1739046641921,-500.0,0.00011232,2]
[352338937,1739046641931,-500.0,0.00011232,2]
[352338938,1739046641940,-500.0,0.00011232,2]
[352338939,1739046641950,-500.0,0.00011232,2]
[352338940,1739046641960,-500.0,0.00011232,2]
[352338941,1739046641970,-375.51,0.00011232,2]
[352338942,1739046641981,-500.0,0.00011232,2]
[352338943,1739046641991,-500.0,0.00011232,2]
[352338944,1739046642001,-681.35,0.00011232,2]
[352338945,1739046642010,-500.0,0.00011232,2]
[352338946,1739046642019,-500.0,0.00011232,2]
[352338947,1739046642029,-500.0,0.00011232,2]
[352338948,1739046642039,-500.0,0.00011232,2]
[352338949,1739046642048,-500.0,0.00011232,2]
[352338950,1739046642058,-500.0,0.00011232,2]
[352338951,1739046642068,-500.0,0.00011232,2]
[352338952,1739046642077,-500.0,0.00011232,2]
[352338953,1739046642087,-500.0,0.00011232,2]
[352338954,1739046642097,-500.0,0.00011232,2]
[352338955,1739046642106,-500.0,0.00011232,2]
[352338956,1739046642116,-500.0,0.00011232,2]
[352338957,1739046642126,-729.49,0.00011232,2]
[352338958,1739046642135,-336.26870089,0.00011232,2]
[352338959,1739046642146,-500.0,0.00011232,2]
[352338960,1739046642160,-500.0,0.00011232,2]
[352338961,1739046642170,-519.77,0.00011232,2]
[352338962,1739046642179,-500.0,0.00011232,2]
[352338963,1739046642188,-500.0,0.00011232,2]
[352338964,1739046642198,-1310.85,0.00011232,2]
[352338965,1739046642210,-500.0,0.00011232,2]
[352338966,1739046642226,-500.0,0.00011232,2]
[352338967,1739046642236,-781.33,0.00011232,2]
[352338968,1739046642245,-457.57404294,0.00011232,2]
[352338969,1739046642255,-1005.48,0.00011232,2]
[352338970,1739046642266,-826.6,0.00011232,2]
[352338971,1739046642276,-2336.07,0.00011232,2]
[352338972,1739046642286,-500.0,0.00011232,2]
[352338973,1739046642296,-500.0,0.00011232,2]
[352338974,1739046642306,-548.96,0.00011232,2]
[352338975,1739046642316,-500.0,0.00011232,2]
[352338976,1739046642326,-1012.29,0.00011232,2]
[352338977,1739046642335,-539.83,0.00011232,2]
[352338978,1739046642344,-174.13751698,0.00011232,2]
[352338979,1739046642354,-9403.59,0.00011232,2]
[352338980,1739046642364,-227.60640928,0.00011232,2]
[352338981,1739046642374,-500.0,0.00011232,2]
[352338982,1739046642383,-909.51,0.00011232,2]
[352338983,1739046642392,-500.0,0.00011232,2]
[352338984,1739046642402,-2851.67,0.00011232,2]
[352338985,1739046642412,-500.0,0.00011232,2]
[352338986,1739046642422,-245.81185511,0.00011232,2]
[352338987,1739046642433,-632.02,0.00011232,2]
[352338988,1739046642443,-991.24,0.00011232,2]
[352338989,1739046642453,-833.82,0.00011232,2]
[352338990,1739046642463,-500.0,0.00011232,2]
[352338991,1739046642473,-500.0,0.00011232,2]
[352338992,1739046642483,-289.09,0.00011232,2]
[352338993,1739046642492,-1091.23,0.00011232,2]
[352338994,1739046642502,-500.0,0.00011232,2]
[352338995,1739046642511,-500.0,0.00011232,2]
[352338996,1739046642521,-500.0,0.00011232,2]
[352338997,1739046642530,-500.0,0.00011232,2]
[352338999,1739046642540,-500.0,0.00011232,2]
[352339000,1739046642555,-500.0,0.00011232,2]
[352339001,1739046642564,-500.0,0.00011232,2]
[352339002,1739046642574,-500.0,0.00011232,2]
[352339003,1739046642583,-500.0,0.00011232,2]
[352339004,1739046642593,-2130.48,0.00011232,2]
[352339005,1739046642603,-500.0,0.00011232,2]
[352339006,1739046642613,-500.0,0.00011232,2]
[352339007,1739046642623,-500.0,0.00011232,2]
[352339008,1739046642633,-500.0,0.00011232,2]
[352339009,1739046642643,-533.66,0.00011232,2]
[352339011,1739046642652,-982.5,0.00011232,2]
[352339012,1739046642661,-641.66,0.00011232,2]
[352339014,1739046642672,-500.0,0.00011232,2]
[352339016,1739046642687,-500.0,0.00011232,2]
[352339019,1739046642698,-1943.58,0.00011232,2]
[352339022,1739046642716,-500.0,0.00011232,2]
[352339024,1739046642733,-500.0,0.00011232,2]
[352339028,1739046642743,-500.0,0.00011232,2]
[352339030,1739046642753,-4950.39,0.00011232,2]
[352339032,1739046642762,-1789.83,0.00011232,2]
[352339034,1739046642772,-933.44,0.00011232,2]
[352339035,1739046642782,-513.28479079,0.00011232,2]
[352339036,1739046642791,-500.0,0.00011232,2]
[352339038,1739046642801,-9126.83,0.00011232,2]
[352339039,1739046642810,-500.0,0.00011232,2]
[352339041,1739046642820,-481.37302079,0.00011232,2]
[352339043,1739046642829,-1963.88,0.00011232,2]
[352339044,1739046642839,-500.0,0.00011232,2]
[352339045,1739046642848,-913.17,0.00011232,2]
[352339046,1739046642858,-500.0,0.00011232,2]
[352339047,1739046642870,-500.0,0.00011232,2]
[352339048,1739046642880,-2042.98,0.00011232,2]
[352339049,1739046642890,-617.84,0.00011232,2]
[352339050,1739046642900,-500.0,0.00011232,2]
[352339051,1739046642909,-660.31,0.00011232,2]
[352339052,1739046642919,-500.0,0.00011232,2]
[352339054,1739046642929,-500.0,0.00011232,2]
[352339056,1739046642940,-1725.21,0.00011232,2]
[352339058,1739046642950,-500.0,0.00011232,2]
[352339059,1739046642960,-500.0,0.00011232,2]
[352339060,1739046642970,-500.0,0.00011232,2]
[352339061,1739046642979,-500.0,0.00011232,2]
[352339063,1739046642989,-3428.86,0.00011232,2]
[352339065,1739046642998,-500.0,0.00011232,2]
[352339067,1739046643008,-500.0,0.00011232,2]
[352339069,1739046643018,-608.88,0.00011232,2]
[352339071,1739046643028,-500.0,0.00011232,2]
[352339073,1739046643037,-532.84,0.00011232,2]
[352339075,1739046643047,-500.0,0.00011292,2]
[352339077,1739046643056,-504.66349108,0.00011292,2]
[352339079,1739046643066,-500.0,0.00011369,2]
[352339082,1739046643212,-892.92,0.00011369,2]
[352339083,1739046643223,-231.96,0.00011369,2]
[352339084,1739046643233,-904.88,0.00011369,2]
[352339085,1739046643243,-500.0,0.00011369,2]
[352339086,1739046643253,-281.99002132,0.00011369,2]
[352339087,1739046643262,-594.56,0.00011369,2]
[352339089,1739046643272,-819.57,0.00011369,2]
[352339090,1739046643281,-500.0,0.00011369,2]
[352339091,1739046643291,-500.0,0.00011369,2]
[352339092,1739046643301,-500.0,0.00011369,2]
[352339093,1739046643310,-693.57,0.00011369,2]
[352339094,1739046643320,-500.0,0.00011369,2]
[352339095,1739046643329,-500.0,0.00011369,2]
[352339096,1739046643339,-500.0,0.00011369,2]
[352339097,1739046643349,-500.0,0.00011369,2]
[352339098,1739046643359,-500.0,0.00011369,2]
[352339099,1739046643371,-500.0,0.00011369,2]